[Event "Late-Titled-Tuesday-Blitz-April-02-2024"]
[Site "Chess.com"]
[Date "2024.04.02"]
[Round "10"]
[White "Viktoker"]
[Black "Quattroporte300"]
[Result "0-1"]
[WhiteElo "2504"]
[BlackElo "2498"]
[TimeControl "180+1"]
[EndTime "15:52:38 PDT"]
[Termination "Quattroporte300 won by checkmate"]

1. e4 {[%clk 0:02:56.4]} 1... c5 {[%clk 0:03:00.4]} 2. Nf3 {[%clk 0:02:56]} 2...
Nc6 {[%clk 0:03:00.6]} 3. d4 {[%clk 0:02:56]} 3... cxd4 {[%clk 0:03:01.2]} 4.
Nxd4 {[%clk 0:02:56.9]} 4... e5 {[%clk 0:03:01.7]} 5. Nb5 {[%clk 0:02:56]} 5...
d6 {[%clk 0:03:01]} 6. N1c3 {[%clk 0:02:51.9]} 6... a6 {[%clk 0:03:00.5]} 7. Na3
{[%clk 0:02:52.2]} 7... Be6 {[%clk 0:02:57.8]} 8. Bd3 {[%clk 0:02:39.8]} 8... b5
{[%clk 0:02:56.9]} 9. Nab1 {[%clk 0:02:35.4]} 9... Be7 {[%clk 0:02:50]} 10. O-O
{[%clk 0:02:35.1]} 10... Nf6 {[%clk 0:02:50.2]} 11. a4 {[%clk 0:02:32.1]} 11...
b4 {[%clk 0:02:49.2]} 12. Ne2 {[%clk 0:02:32]} 12... O-O {[%clk 0:02:46.4]} 13.
Ng3 {[%clk 0:02:31.6]} 13... d5 {[%clk 0:02:42.7]} 14. exd5 {[%clk 0:02:31.9]}
14... Qxd5 {[%clk 0:02:41]} 15. Nd2 {[%clk 0:02:28.1]} 15... Rfd8 {[%clk
0:02:33.4]} 16. Qe2 {[%clk 0:02:26.3]} 16... Nd4 {[%clk 0:02:31.2]} 17. Qe1
{[%clk 0:02:20.6]} 17... a5 {[%clk 0:02:24]} 18. Nde4 {[%clk 0:02:20.3]} 18...
Qd7 {[%clk 0:02:16.5]} 19. Bg5 {[%clk 0:02:15.5]} 19... Nxe4 {[%clk 0:02:12.4]}
20. Nxe4 {[%clk 0:02:16.4]} 20... f5 {[%clk 0:02:09.6]} 21. Bxe7 {[%clk
0:01:49.6]} 21... Qxe7 {[%clk 0:02:10.5]} 22. Ng3 {[%clk 0:01:39.6]} 22... Qg5
{[%clk 0:02:07.1]} 23. Qxe5 {[%clk 0:01:33.7]} 23... Rd5 {[%clk 0:02:00.2]} 24.
Qc7 {[%clk 0:01:22.8]} 24... Rc8 {[%clk 0:01:54.7]} 25. Qb6 {[%clk 0:01:17]}
25... Rc6 {[%clk 0:01:37.7]} 26. Qa7 {[%clk 0:01:09.6]} 26... h5 {[%clk
0:01:13]} 27. f4 {[%clk 0:00:56.7]} 27... Qg4 {[%clk 0:01:03.1]} 28. Rae1 {[%clk
0:00:45.4]} 28... h4 {[%clk 0:01:00.6]} 29. Ne2 {[%clk 0:00:32]} 29... h3 {[%clk
0:00:59.5]} 30. g3 {[%clk 0:00:29.2]} 30... Nf3+ {[%clk 0:00:56.7]} 31. Kf2
{[%clk 0:00:20.7]} 31... Nxh2 {[%clk 0:00:42.6]} 32. Ng1 {[%clk 0:00:20]} 32...
Nxf1 {[%clk 0:00:38.6]} 33. Be2 {[%clk 0:00:17.4]} 33... Qxg3+ {[%clk 0:00:36]}
34. Kxf1 {[%clk 0:00:17.9]} 34... Qg2# {[%clk 0:00:36.1]} 0-1

[Event "Late-Titled-Tuesday-Blitz-April-02-2024"]
[Site "Chess.com"]
[Date "2024.04.02"]
[Round "10"]
[White "PawnEatingZombie"]
[Black "jcmesafischer"]
[Result "0-1"]
[WhiteElo "2183"]
[BlackElo "2363"]
[TimeControl "180+1"]
[EndTime "15:52:38 PDT"]
[Termination "jcmesafischer won by checkmate"]

1. e4 {[%clk 0:03:00.9]} 1... c5 {[%clk 0:02:52.3]} 2. c3 {[%clk 0:03:00.4]}
2... d5 {[%clk 0:02:49.4]} 3. exd5 {[%clk 0:03:00]} 3... Nf6 {[%clk 0:02:49.1]}
4. Bb5+ {[%clk 0:02:57.7]} 4... Bd7 {[%clk 0:02:42.8]} 5. Bxd7+ {[%clk
0:02:56.4]} 5... Qxd7 {[%clk 0:02:43.7]} 6. c4 {[%clk 0:02:55.1]} 6... e6 {[%clk
0:02:42.6]} 7. dxe6 {[%clk 0:02:50.3]} 7... fxe6 {[%clk 0:02:36.1]} 8. Nf3
{[%clk 0:02:46.5]} 8... Nc6 {[%clk 0:02:35.9]} 9. O-O {[%clk 0:02:44]} 9... Bd6
{[%clk 0:02:35.4]} 10. Re1 {[%clk 0:02:44.1]} 10... O-O {[%clk 0:02:34.5]} 11.
Nc3 {[%clk 0:02:33.1]} 11... a6 {[%clk 0:02:17.1]} 12. Qe2 {[%clk 0:02:31.7]}
12... Rae8 {[%clk 0:02:13.8]} 13. d3 {[%clk 0:02:30.7]} 13... Ng4 {[%clk
0:02:12.8]} 14. h3 {[%clk 0:02:24.5]} 14... Nge5 {[%clk 0:01:48.3]} 15. Nxe5
{[%clk 0:02:21.3]} 15... Nxe5 {[%clk 0:01:49.2]} 16. Ne4 {[%clk 0:02:17.1]}
16... Bb8 {[%clk 0:01:15.2]} 17. Be3 {[%clk 0:01:37.1]} 17... Qxd3 {[%clk
0:00:51.9]} 18. Qxd3 {[%clk 0:01:32.8]} 18... Nxd3 {[%clk 0:00:52.8]} 19. Re2
{[%clk 0:01:21.2]} 19... b6 {[%clk 0:00:48.8]} 20. Rd1 {[%clk 0:01:13.9]} 20...
Nb4 {[%clk 0:00:45.2]} 21. a3 {[%clk 0:01:07.7]} 21... Nc6 {[%clk 0:00:45]} 22.
Rd7 {[%clk 0:00:52.1]} 22... Rf7 {[%clk 0:00:35.7]} 23. Rxf7 {[%clk 0:00:51.6]}
23... Kxf7 {[%clk 0:00:36.6]} 24. b4 {[%clk 0:00:29.9]} 24... cxb4 {[%clk
0:00:29.7]} 25. axb4 {[%clk 0:00:30.8]} 25... b5 {[%clk 0:00:14.9]} 26. cxb5
{[%clk 0:00:29.2]} 26... axb5 {[%clk 0:00:15.8]} 27. Bc5 {[%clk 0:00:28.6]}
27... h6 {[%clk 0:00:13.2]} 28. Ra2 {[%clk 0:00:25.3]} 28... Rd8 {[%clk
0:00:12]} 29. Ra6 {[%clk 0:00:23.9]} 29... Rd1# {[%clk 0:00:11.6]} 0-1

[Event "Late-Titled-Tuesday-Blitz-April-02-2024"]
[Site "Chess.com"]
[Date "2024.04.02"]
[Round "10"]
[White "ploxoi"]
[Black "CURRUTACO59"]
[Result "1-0"]
[WhiteElo "2444"]
[BlackElo "2249"]
[TimeControl "180+1"]
[EndTime "15:52:42 PDT"]
[Termination "ploxoi won on time"]

1. d4 {[%clk 0:03:00.9]} 1... Nf6 {[%clk 0:02:58.1]} 2. Nf3 {[%clk 0:03:01.1]}
2... e6 {[%clk 0:02:57.8]} 3. c4 {[%clk 0:03:00.6]} 3... Bb4+ {[%clk 0:02:57.1]}
4. Bd2 {[%clk 0:03:00.4]} 4... Bxd2+ {[%clk 0:02:50.6]} 5. Qxd2 {[%clk
0:02:59.4]} 5... O-O {[%clk 0:02:49.1]} 6. Nc3 {[%clk 0:02:59.5]} 6... d5 {[%clk
0:02:49.1]} 7. g3 {[%clk 0:02:59.2]} 7... Qe7 {[%clk 0:02:47.2]} 8. Bg2 {[%clk
0:02:58.9]} 8... Rd8 {[%clk 0:02:47.1]} 9. O-O {[%clk 0:02:52.6]} 9... dxc4
{[%clk 0:02:46.5]} 10. Ne5 {[%clk 0:02:52.4]} 10... c5 {[%clk 0:02:45.2]} 11. e3
{[%clk 0:02:50.8]} 11... cxd4 {[%clk 0:02:35.7]} 12. exd4 {[%clk 0:02:51.7]}
12... Nbd7 {[%clk 0:02:22]} 13. Nxc4 {[%clk 0:02:49.6]} 13... Rb8 {[%clk
0:02:07.1]} 14. Qf4 {[%clk 0:02:39.4]} 14... b6 {[%clk 0:01:48.8]} 15. Rfe1
{[%clk 0:02:32.4]} 15... Bb7 {[%clk 0:01:41.5]} 16. Bxb7 {[%clk 0:02:30.4]}
16... Rxb7 {[%clk 0:01:41.9]} 17. d5 {[%clk 0:02:20.2]} 17... Nc5 {[%clk
0:01:31.8]} 18. dxe6 {[%clk 0:02:16.9]} 18... Nd3 {[%clk 0:01:09.4]} 19. exf7+
{[%clk 0:02:04.7]} 19... Qxf7 {[%clk 0:01:08.9]} 20. Qd2 {[%clk 0:02:03.7]}
20... Qxc4 {[%clk 0:01:04.3]} 21. Re3 {[%clk 0:01:59]} 21... Rbd7 {[%clk
0:01:03.4]} 22. Qc2 {[%clk 0:01:55.4]} 22... Nb4 {[%clk 0:01:00.7]} 23. Qf5
{[%clk 0:01:50.6]} 23... Nbd5 {[%clk 0:00:53.3]} 24. Nxd5 {[%clk 0:01:49.2]}
24... Qxd5 {[%clk 0:00:51.5]} 25. Qc2 {[%clk 0:01:46.4]} 25... Qd2 {[%clk
0:00:47.7]} 26. Qc4+ {[%clk 0:01:44.7]} 26... Qd5 {[%clk 0:00:45.5]} 27. Qc2
{[%clk 0:01:43.6]} 27... h6 {[%clk 0:00:42.7]} 28. Rae1 {[%clk 0:01:43.5]} 28...
Kh8 {[%clk 0:00:41.7]} 29. Qg6 {[%clk 0:01:43.4]} 29... Qf7 {[%clk 0:00:36.4]}
30. Qc2 {[%clk 0:01:38.2]} 30... Rd2 {[%clk 0:00:32.5]} 31. Qf5 {[%clk
0:01:33.9]} 31... Rf8 {[%clk 0:00:28.1]} 32. Re7 {[%clk 0:01:32.4]} 32... Qh5
{[%clk 0:00:18]} 33. Qf4 {[%clk 0:01:27.1]} 33... Rd7 {[%clk 0:00:06.5]} 34.
Rxd7 {[%clk 0:01:12.3]} 34... Nxd7 {[%clk 0:00:07.4]} 35. Qd6 {[%clk 0:01:12.4]}
35... Qf7 {[%clk 0:00:06.2]} 36. f4 {[%clk 0:01:11]} 36... Nf6 {[%clk
0:00:04.7]} 37. Re7 {[%clk 0:01:11.2]} 37... Qc4 {[%clk 0:00:03.4]} 38. Kg2
{[%clk 0:01:05.7]} 38... Qc2+ {[%clk 0:00:03.2]} 39. Kh3 {[%clk 0:01:05.1]}
39... Qf5+ {[%clk 0:00:03.1]} 40. Kg2 {[%clk 0:01:05.4]} 40... Qc2+ {[%clk
0:00:02.9]} 41. Kf3 {[%clk 0:01:03.6]} 1-0

[Event "Late-Titled-Tuesday-Blitz-April-02-2024"]
[Site "Chess.com"]
[Date "2024.04.02"]
[Round "10"]
[White "AmanteDeMoi"]
[Black "Slovineanu"]
[Result "1-0"]
[WhiteElo "2613"]
[BlackElo "2478"]
[TimeControl "180+1"]
[EndTime "15:52:51 PDT"]
[Termination "AmanteDeMoi won by resignation"]

1. Nf3 {[%clk 0:02:58.8]} 1... Nf6 {[%clk 0:02:59.6]} 2. e3 {[%clk 0:02:58.3]}
2... d5 {[%clk 0:02:58.1]} 3. c4 {[%clk 0:02:58]} 3... e6 {[%clk 0:02:58]} 4. b3
{[%clk 0:02:58.1]} 4... c5 {[%clk 0:02:57.5]} 5. Bb2 {[%clk 0:02:58.5]} 5... Nc6
{[%clk 0:02:57.3]} 6. cxd5 {[%clk 0:02:58.4]} 6... exd5 {[%clk 0:02:57.3]} 7.
Be2 {[%clk 0:02:58]} 7... d4 {[%clk 0:02:48.5]} 8. Bb5 {[%clk 0:02:58]} 8... Bd7
{[%clk 0:02:38.3]} 9. O-O {[%clk 0:02:49.7]} 9... Be7 {[%clk 0:02:36.8]} 10. Re1
{[%clk 0:02:43.7]} 10... O-O {[%clk 0:02:35.9]} 11. exd4 {[%clk 0:02:40.2]}
11... cxd4 {[%clk 0:02:30.5]} 12. Bxc6 {[%clk 0:02:28]} 12... bxc6 {[%clk
0:02:12.8]} 13. Nxd4 {[%clk 0:02:28.9]} 13... Bc5 {[%clk 0:02:12]} 14. Nf3
{[%clk 0:02:22.5]} 14... Bg4 {[%clk 0:02:03.7]} 15. h3 {[%clk 0:02:14.5]} 15...
Bh5 {[%clk 0:02:01.4]} 16. Qc2 {[%clk 0:01:41]} 16... Bb6 {[%clk 0:01:54.1]} 17.
Ne5 {[%clk 0:01:35]} 17... Re8 {[%clk 0:01:49.9]} 18. Na3 {[%clk 0:01:31.5]}
18... Qd5 {[%clk 0:01:35.5]} 19. Nac4 {[%clk 0:01:19.6]} 19... Bc7 {[%clk
0:01:35.4]} 20. d4 {[%clk 0:01:15]} 20... c5 {[%clk 0:01:29.6]} 21. Ne3 {[%clk
0:01:00.7]} 21... Qe4 {[%clk 0:01:14.4]} 22. Qxc5 {[%clk 0:00:51]} 22... Bb6
{[%clk 0:01:08.4]} 23. Qc2 {[%clk 0:00:45]} 23... Qf4 {[%clk 0:00:37.8]} 24. Qf5
{[%clk 0:00:40.5]} 24... Qh6 {[%clk 0:00:32.6]} 25. N3g4 {[%clk 0:00:20.7]}
25... Bxg4 {[%clk 0:00:26.8]} 26. Nxg4 {[%clk 0:00:21.6]} 26... Nxg4 {[%clk
0:00:26.5]} 27. Qxg4 {[%clk 0:00:19.5]} 27... Rxe1+ {[%clk 0:00:24]} 28. Rxe1
{[%clk 0:00:20.4]} 28... Qd2 {[%clk 0:00:24.5]} 29. Qe2 {[%clk 0:00:20]} 29...
Qf4 {[%clk 0:00:20.7]} 30. Qe8+ {[%clk 0:00:18.9]} 1-0

[Event "Late-Titled-Tuesday-Blitz-April-02-2024"]
[Site "Chess.com"]
[Date "2024.04.02"]
[Round "10"]
[White "Supelyel"]
[Black "Veganator13"]
[Result "0-1"]
[WhiteElo "2415"]
[BlackElo "2317"]
[TimeControl "180+1"]
[EndTime "15:52:58 PDT"]
[Termination "Veganator13 won by resignation"]

1. c4 {[%clk 0:03:00.9]} 1... g6 {[%clk 0:02:59.5]} 2. Nc3 {[%clk 0:02:59.4]}
2... Bg7 {[%clk 0:02:59.4]} 3. g3 {[%clk 0:02:59.2]} 3... c5 {[%clk 0:02:59.3]}
4. Bg2 {[%clk 0:02:59]} 4... Nc6 {[%clk 0:03:00]} 5. Nf3 {[%clk 0:02:58.6]} 5...
d6 {[%clk 0:02:59.6]} 6. O-O {[%clk 0:02:57.8]} 6... Bf5 {[%clk 0:03:00.3]} 7.
d3 {[%clk 0:02:53.1]} 7... Qd7 {[%clk 0:03:00.5]} 8. Nd5 {[%clk 0:02:50]} 8...
Rc8 {[%clk 0:02:59.9]} 9. h4 {[%clk 0:02:36.9]} 9... Bh3 {[%clk 0:02:56.1]} 10.
Rb1 {[%clk 0:02:29.3]} 10... Bxg2 {[%clk 0:02:49.2]} 11. Kxg2 {[%clk 0:02:28.9]}
11... e6 {[%clk 0:02:48.5]} 12. Nc3 {[%clk 0:02:20.3]} 12... Nf6 {[%clk
0:02:45.2]} 13. Bg5 {[%clk 0:02:17.4]} 13... Ng4 {[%clk 0:02:43.2]} 14. Qc1
{[%clk 0:02:05.5]} 14... h6 {[%clk 0:02:42.4]} 15. Bd2 {[%clk 0:02:05.1]} 15...
d5 {[%clk 0:02:37.6]} 16. Re1 {[%clk 0:01:34.3]} 16... b6 {[%clk 0:02:32.4]} 17.
a3 {[%clk 0:01:33.9]} 17... O-O {[%clk 0:02:30.5]} 18. b4 {[%clk 0:01:32.1]}
18... cxb4 {[%clk 0:02:18.1]} 19. axb4 {[%clk 0:01:27.9]} 19... dxc4 {[%clk
0:02:14.8]} 20. dxc4 {[%clk 0:01:27.3]} 20... Nce5 {[%clk 0:02:13.8]} 21. Nxe5
{[%clk 0:01:10.8]} 21... Nxe5 {[%clk 0:02:13.2]} 22. Bxh6 {[%clk 0:01:07.7]}
22... Bxh6 {[%clk 0:02:13]} 23. Qxh6 {[%clk 0:01:08.6]} 23... Rxc4 {[%clk
0:02:13.2]} 24. Nd1 {[%clk 0:00:47.8]} 24... Qc6+ {[%clk 0:01:51]} 25. Kg1
{[%clk 0:00:47.8]} 25... Rd8 {[%clk 0:01:37.2]} 26. Ne3 {[%clk 0:00:46.4]} 26...
Rcd4 {[%clk 0:01:34]} 27. Qg5 {[%clk 0:00:38.9]} 27... Qe4 {[%clk 0:01:29.2]}
28. Rbc1 {[%clk 0:00:29.8]} 28... Ng4 {[%clk 0:01:15.4]} 29. Nxg4 {[%clk
0:00:22.4]} 29... Qxg4 {[%clk 0:01:14.8]} 30. Qe7 {[%clk 0:00:20.6]} 30... R4d7
{[%clk 0:01:06]} 31. Qf6 {[%clk 0:00:19.8]} 31... Qxb4 {[%clk 0:01:05.7]} 32. h5
{[%clk 0:00:16.7]} 32... Qd4 {[%clk 0:00:51.7]} 33. Qf3 {[%clk 0:00:15.5]} 33...
gxh5 {[%clk 0:00:46.6]} 34. Qxh5 {[%clk 0:00:15.1]} 34... Rd5 {[%clk 0:00:45.3]}
35. Qh4 {[%clk 0:00:13.6]} 35... Qxh4 {[%clk 0:00:44.5]} 36. gxh4 {[%clk
0:00:13.8]} 36... Rd4 {[%clk 0:00:44.9]} 37. Rc7 {[%clk 0:00:12.5]} 37... Rxh4
{[%clk 0:00:42.4]} 38. Rxa7 {[%clk 0:00:12.2]} 38... Rd5 {[%clk 0:00:43.3]} 39.
Rc1 {[%clk 0:00:12]} 39... Rg5+ {[%clk 0:00:43]} 0-1

[Event "Late-Titled-Tuesday-Blitz-April-02-2024"]
[Site "Chess.com"]
[Date "2024.04.02"]
[Round "10"]
[White "Walter_White_Poland"]
[Black "jinxy2009"]
[Result "0-1"]
[WhiteElo "2419"]
[BlackElo "2325"]
[TimeControl "180+1"]
[EndTime "15:53:08 PDT"]
[Termination "jinxy2009 won by resignation"]

1. e4 {[%clk 0:03:00.9]} 1... c5 {[%clk 0:02:55.4]} 2. Nf3 {[%clk 0:03:00.7]}
2... Nc6 {[%clk 0:02:53.7]} 3. Nc3 {[%clk 0:03:00]} 3... e5 {[%clk 0:02:52.8]}
4. Bc4 {[%clk 0:02:59.5]} 4... Be7 {[%clk 0:02:52.5]} 5. d3 {[%clk 0:02:58.7]}
5... Nf6 {[%clk 0:02:50.4]} 6. Nd2 {[%clk 0:02:58.3]} 6... O-O {[%clk
0:02:49.9]} 7. Nf1 {[%clk 0:02:58.1]} 7... d6 {[%clk 0:02:50.6]} 8. Ne3 {[%clk
0:02:58]} 8... Be6 {[%clk 0:02:47.5]} 9. Ncd5 {[%clk 0:02:57.8]} 9... Nd7 {[%clk
0:02:47.6]} 10. a3 {[%clk 0:02:51.8]} 10... Nb6 {[%clk 0:02:47.2]} 11. Ba2
{[%clk 0:02:49.3]} 11... Bg5 {[%clk 0:02:47.3]} 12. h4 {[%clk 0:02:40.8]} 12...
Bh6 {[%clk 0:02:41]} 13. Qh5 {[%clk 0:02:36.8]} 13... Nd4 {[%clk 0:02:10]} 14.
Kd1 {[%clk 0:01:57]} 14... Nxd5 {[%clk 0:01:43.9]} 15. Bxd5 {[%clk 0:01:45.9]}
15... Bxd5 {[%clk 0:01:32.9]} 16. Nxd5 {[%clk 0:01:40.9]} 16... Bxc1 {[%clk
0:01:28.1]} 17. Rxc1 {[%clk 0:01:40.6]} 17... f5 {[%clk 0:01:12.7]} 18. c3
{[%clk 0:01:40]} 18... Nb3 {[%clk 0:01:06.2]} 19. exf5 {[%clk 0:01:38.5]} 19...
Nxc1 {[%clk 0:01:06.2]} 20. Kxc1 {[%clk 0:01:38.4]} 20... b5 {[%clk 0:00:51.1]}
21. Rh3 {[%clk 0:01:36.8]} 21... Qd7 {[%clk 0:00:43.9]} 22. g4 {[%clk
0:01:14.6]} 22... a5 {[%clk 0:00:32.8]} 23. Rg3 {[%clk 0:01:01]} 23... Qb7
{[%clk 0:00:28.6]} 24. Ne3 {[%clk 0:00:30.5]} 24... b4 {[%clk 0:00:27.3]} 25. g5
{[%clk 0:00:21.5]} 25... bxc3 {[%clk 0:00:21.8]} 26. bxc3 {[%clk 0:00:20.6]}
26... Rab8 {[%clk 0:00:20.5]} 27. Nc2 {[%clk 0:00:19.7]} 27... Qb1+ {[%clk
0:00:19.6]} 28. Kd2 {[%clk 0:00:19.7]} 28... Rxf5 {[%clk 0:00:15.3]} 29. Qg4
{[%clk 0:00:19.3]} 29... Rxf2+ {[%clk 0:00:14.9]} 30. Ke3 {[%clk 0:00:18.7]}
30... Qxc2 {[%clk 0:00:14.1]} 31. Qe6+ {[%clk 0:00:17.3]} 31... Kh8 {[%clk
0:00:14.4]} 32. Ke4 {[%clk 0:00:16.7]} 32... Rf4+ {[%clk 0:00:09.5]} 33. Kd5
{[%clk 0:00:16.1]} 33... Qb3+ {[%clk 0:00:09.4]} 34. Kxd6 {[%clk 0:00:15.7]}
34... Rb6+ {[%clk 0:00:09.7]} 35. Kxc5 {[%clk 0:00:14.5]} 35... Qxe6 {[%clk
0:00:09.5]} 0-1

[Event "Late-Titled-Tuesday-Blitz-April-02-2024"]
[Site "Chess.com"]
[Date "2024.04.02"]
[Round "10"]
[White "ChempionBg"]
[Black "shirovin"]
[Result "1-0"]
[WhiteElo "2247"]
[BlackElo "2052"]
[TimeControl "180+1"]
[EndTime "15:53:09 PDT"]
[Termination "ChempionBg won on time"]

1. d4 {[%clk 0:02:50.6]} 1... Nf6 {[%clk 0:03:00.1]} 2. c4 {[%clk 0:02:49.8]}
2... e6 {[%clk 0:03:00.5]} 3. Nf3 {[%clk 0:02:49.8]} 3... d5 {[%clk 0:02:59.8]}
4. g3 {[%clk 0:02:46.7]} 4... Be7 {[%clk 0:02:56.7]} 5. Bg2 {[%clk 0:02:46.7]}
5... O-O {[%clk 0:02:57.1]} 6. O-O {[%clk 0:02:46.4]} 6... dxc4 {[%clk
0:02:56.9]} 7. Qc2 {[%clk 0:02:43.9]} 7... b5 {[%clk 0:02:32]} 8. a4 {[%clk
0:02:39.7]} 8... c6 {[%clk 0:02:20.5]} 9. Ne5 {[%clk 0:02:37.7]} 9... Nd5 {[%clk
0:02:19.2]} 10. Nc3 {[%clk 0:02:34.7]} 10... Bb7 {[%clk 0:02:03.2]} 11. axb5
{[%clk 0:02:29.7]} 11... cxb5 {[%clk 0:01:58]} 12. Nxb5 {[%clk 0:02:17.6]} 12...
Qb6 {[%clk 0:01:25]} 13. Qxc4 {[%clk 0:01:12.7]} 13... Rc8 {[%clk 0:01:21.8]}
14. Qa4 {[%clk 0:01:03.8]} 14... Nc6 {[%clk 0:01:13.4]} 15. Nc3 {[%clk
0:00:44.7]} 15... Nxe5 {[%clk 0:00:33.3]} 16. Nxd5 {[%clk 0:00:34.1]} 16... Bxd5
{[%clk 0:00:18.7]} 17. Bxd5 {[%clk 0:00:32.6]} 17... exd5 {[%clk 0:00:18.2]} 18.
dxe5 {[%clk 0:00:32.6]} 18... Qe6 {[%clk 0:00:17]} 19. f4 {[%clk 0:00:18.7]}
19... Rc4 {[%clk 0:00:14.1]} 20. Qd1 {[%clk 0:00:14.9]} 20... Bc5+ {[%clk
0:00:12.3]} 21. Kg2 {[%clk 0:00:13.5]} 21... Rc8 {[%clk 0:00:09.4]} 22. Qd3
{[%clk 0:00:08.9]} 22... Bb6 {[%clk 0:00:07.2]} 23. Bd2 {[%clk 0:00:08.1]} 23...
d4 {[%clk 0:00:04.4]} 24. Rac1 {[%clk 0:00:06.1]} 24... Qd5+ {[%clk 0:00:03.2]}
25. Qf3 {[%clk 0:00:05.9]} 1-0

[Event "Late-Titled-Tuesday-Blitz-April-02-2024"]
[Site "Chess.com"]
[Date "2024.04.02"]
[Round "10"]
[White "HipsterChess22"]
[Black "maurovargas01"]
[Result "1-0"]
[WhiteElo "2186"]
[BlackElo "1882"]
[TimeControl "180+1"]
[EndTime "15:53:10 PDT"]
[Termination "HipsterChess22 won by checkmate"]

1. d4 {[%clk 0:02:59.7]} 1... Nf6 {[%clk 0:02:52.3]} 2. Nc3 {[%clk 0:02:57.8]}
2... e6 {[%clk 0:02:52.2]} 3. e4 {[%clk 0:02:55.9]} 3... Bb4 {[%clk 0:02:51.5]}
4. e5 {[%clk 0:02:51.7]} 4... Ne4 {[%clk 0:02:49.4]} 5. Qd3 {[%clk 0:02:47]}
5... Nxc3 {[%clk 0:02:38.9]} 6. bxc3 {[%clk 0:02:46.4]} 6... Ba5 {[%clk
0:02:38.7]} 7. Qg3 {[%clk 0:02:42.7]} 7... g6 {[%clk 0:02:34.7]} 8. Bg5 {[%clk
0:02:36.7]} 8... f6 {[%clk 0:02:24.7]} 9. Bxf6 {[%clk 0:02:34.7]} 9... Nc6
{[%clk 0:02:24.2]} 10. Bxd8 {[%clk 0:02:23.7]} 10... Nxd8 {[%clk 0:02:25.1]} 11.
Qd3 {[%clk 0:02:08]} 11... O-O {[%clk 0:02:21.9]} 12. Nf3 {[%clk 0:02:05.5]}
12... Nc6 {[%clk 0:02:12.9]} 13. h4 {[%clk 0:02:03.2]} 13... d6 {[%clk
0:02:11.5]} 14. exd6 {[%clk 0:01:53.7]} 14... cxd6 {[%clk 0:02:11]} 15. h5
{[%clk 0:01:53.9]} 15... e5 {[%clk 0:02:09.8]} 16. hxg6 {[%clk 0:01:51.5]} 16...
e4 {[%clk 0:02:09.8]} 17. gxh7+ {[%clk 0:01:44.9]} 17... Kh8 {[%clk 0:02:09]}
18. Qc4 {[%clk 0:01:18.8]} 18... exf3 {[%clk 0:02:03.8]} 19. gxf3 {[%clk
0:01:16.3]} 19... Re8+ {[%clk 0:02:02.1]} 20. Kd2 {[%clk 0:01:13.2]} 20... Be6
{[%clk 0:01:56.6]} 21. d5 {[%clk 0:01:04.5]} 21... Ne5 {[%clk 0:01:54.5]} 22.
Qd4 {[%clk 0:01:01.8]} 22... Bb6 {[%clk 0:01:53.3]} 23. dxe6 {[%clk 0:00:42.2]}
23... Bxd4 {[%clk 0:01:51.7]} 24. cxd4 {[%clk 0:00:42.2]} 24... Nxf3+ {[%clk
0:01:50.2]} 25. Ke3 {[%clk 0:00:41.9]} 25... Ng5 {[%clk 0:01:45.6]} 26. d5
{[%clk 0:00:41.7]} 26... Rac8 {[%clk 0:01:44.7]} 27. Bd3 {[%clk 0:00:41.1]}
27... Rf8 {[%clk 0:01:34.9]} 28. f4 {[%clk 0:00:39.6]} 28... Nxe6 {[%clk
0:01:21.4]} 29. dxe6 {[%clk 0:00:39.5]} 29... Rf6 {[%clk 0:01:16.5]} 30. f5
{[%clk 0:00:39.3]} 30... Rc7 {[%clk 0:01:10.4]} 31. Rag1 {[%clk 0:00:38.3]}
31... Rxh7 {[%clk 0:01:08.5]} 32. Rxh7+ {[%clk 0:00:37.4]} 32... Kxh7 {[%clk
0:01:08.5]} 33. Kd4 {[%clk 0:00:34.8]} 33... b6 {[%clk 0:00:56.5]} 34. Kd5
{[%clk 0:00:34.4]} 34... Rf8 {[%clk 0:00:48.6]} 35. Kxd6 {[%clk 0:00:28.6]}
35... Rd8+ {[%clk 0:00:47.9]} 36. Ke7 {[%clk 0:00:28.2]} 36... Rc8 {[%clk
0:00:45.9]} 37. Kf7 {[%clk 0:00:26.1]} 37... Rc7+ {[%clk 0:00:44.5]} 38. e7
{[%clk 0:00:26]} 38... Kh6 {[%clk 0:00:44.2]} 39. f6 {[%clk 0:00:23.5]} 39... a5
{[%clk 0:00:43.4]} 40. Kf8 {[%clk 0:00:22.9]} 40... b5 {[%clk 0:00:37.8]} 41.
e8=Q {[%clk 0:00:20.3]} 41... Rf7+ {[%clk 0:00:33.3]} 42. Qxf7 {[%clk
0:00:19.1]} 42... b4 {[%clk 0:00:31.6]} 43. Qg6# {[%clk 0:00:18.9]} 1-0

[Event "Late-Titled-Tuesday-Blitz-April-02-2024"]
[Site "Chess.com"]
[Date "2024.04.02"]
[Round "10"]
[White "steepedgames"]
[Black "chess_sharparchitect"]
[Result "1-0"]
[WhiteElo "2507"]
[BlackElo "2281"]
[TimeControl "180+1"]
[EndTime "15:53:11 PDT"]
[Termination "steepedgames won by resignation"]

1. d4 {[%clk 0:03:00.9]} 1... Nf6 {[%clk 0:02:59.5]} 2. Bg5 {[%clk 0:03:01.4]}
2... Ne4 {[%clk 0:02:58.8]} 3. Bf4 {[%clk 0:03:00.2]} 3... d5 {[%clk 0:02:59.5]}
4. c4 {[%clk 0:02:57.9]} 4... e6 {[%clk 0:02:58.6]} 5. f3 {[%clk 0:02:58]} 5...
Bb4+ {[%clk 0:02:55.3]} 6. Nd2 {[%clk 0:02:55]} 6... Nf6 {[%clk 0:02:26.8]} 7.
a3 {[%clk 0:02:51.5]} 7... Bd6 {[%clk 0:02:25.7]} 8. Bg5 {[%clk 0:02:39.2]} 8...
h6 {[%clk 0:02:23.3]} 9. Bh4 {[%clk 0:02:36.6]} 9... O-O {[%clk 0:02:18.2]} 10.
e3 {[%clk 0:02:34]} 10... c5 {[%clk 0:02:14.1]} 11. Bd3 {[%clk 0:02:20.8]} 11...
cxd4 {[%clk 0:02:07.7]} 12. exd4 {[%clk 0:02:21.7]} 12... Nc6 {[%clk 0:02:07.6]}
13. Ne2 {[%clk 0:02:21]} 13... e5 {[%clk 0:01:52.5]} 14. cxd5 {[%clk 0:02:15.3]}
14... Nxd4 {[%clk 0:01:52.1]} 15. Nxd4 {[%clk 0:02:08.2]} 15... exd4 {[%clk
0:01:51.1]} 16. O-O {[%clk 0:02:05.7]} 16... Re8 {[%clk 0:01:31.3]} 17. Qa4
{[%clk 0:01:49.5]} 17... b6 {[%clk 0:01:24.4]} 18. Rac1 {[%clk 0:01:37.7]} 18...
Bf4 {[%clk 0:01:21.3]} 19. Bxf6 {[%clk 0:01:27.1]} 19... gxf6 {[%clk 0:01:16.5]}
20. Ne4 {[%clk 0:01:11.6]} 20... Bxc1 {[%clk 0:01:07.1]} 21. Rxc1 {[%clk
0:01:12.5]} 21... Kg7 {[%clk 0:00:57]} 22. Qxd4 {[%clk 0:01:09.8]} 22... Bb7
{[%clk 0:00:51.1]} 23. d6 {[%clk 0:01:01.5]} 23... Bxe4 {[%clk 0:00:36.9]} 24.
Bxe4 {[%clk 0:01:01.5]} 24... Rc8 {[%clk 0:00:37.1]} 25. Rxc8 {[%clk 0:00:51.4]}
25... Qxc8 {[%clk 0:00:38]} 26. d7 {[%clk 0:00:49.3]} 26... Qc1+ {[%clk
0:00:37.6]} 27. Kf2 {[%clk 0:00:49.3]} 27... Rd8 {[%clk 0:00:37.4]} 28. b4
{[%clk 0:00:35]} 28... Qxa3 {[%clk 0:00:32.5]} 29. Qd6 {[%clk 0:00:32.8]} 29...
Qa2+ {[%clk 0:00:23.7]} 30. Kf1 {[%clk 0:00:26.6]} 30... Qc4+ {[%clk 0:00:22.2]}
31. Kf2 {[%clk 0:00:24.4]} 31... Qe6 {[%clk 0:00:20.7]} 32. Qg3+ {[%clk
0:00:14.4]} 32... Kh8 {[%clk 0:00:17.6]} 33. Qh4 {[%clk 0:00:14.4]} 33... Kg8
{[%clk 0:00:11.1]} 34. Qxh6 {[%clk 0:00:14.1]} 34... f5 {[%clk 0:00:11.6]} 35.
Qg5+ {[%clk 0:00:14.3]} 35... Kh7 {[%clk 0:00:10]} 36. Bxf5+ {[%clk 0:00:14.2]}
1-0